bitfinex/quotes_BTCUSD_20251113
["timestamp","ask_amount","ask_price","bid_price","bid_amount"]
[1762994141989,0.0002,101890.0,101880.0,0.05341873]
[1762994142195,0.00034081,101890.0,101880.0,1.29278535]
[1762994142401,0.0002,101900.0,101890.0,0.51929011]
[1762994142659,0.0002,101900.0,101890.0,0.63905884]
[1762994142875,0.0002,101920.0,101910.0,0.19625159]
[1762994143104,0.0002,101920.0,101910.0,1.14691909]
[1762994143308,0.0002,101920.0,101910.0,0.81932069]
[1762994143743,0.0002,101920.0,101910.0,1.28154812]
[1762994143988,0.0002,101920.0,101910.0,0.36495062]
[1762994144183,0.0002,101920.0,101910.0,1.28154812]
[1762994144386,0.0019387,101920.0,101910.0,1.28154812]
[1762994144618,0.0019387,101920.0,101910.0,1.28254812]
[1762994145651,0.0019387,101920.0,101910.0,1.32622812]
[1762994146796,0.0019387,101920.0,101910.0,0.40863062]
[1762994147050,0.0019387,101920.0,101910.0,0.41863062]
[1762994147249,0.0019387,101920.0,101910.0,1.33422812]
[1762994147672,0.0019387,101920.0,101910.0,0.42863062]
[1762994147870,0.0019387,101920.0,101910.0,0.88692937]
[1762994148545,0.0019387,101920.0,101910.0,1.34522812]
[1762994153333,0.0019387,101920.0,101910.0,0.93034811]
[1762994153533,0.19817103,101920.0,101910.0,0.93034811]
[1762994153839,0.0019387,101920.0,101910.0,0.42470194]
[1762994154438,0.0019387,101920.0,101910.0,0.46812068]
[1762994154704,0.0019387,101920.0,101910.0,0.92641943]
[1762994154931,0.19817103,101920.0,101910.0,0.39242194]
[1762994155143,0.0019387,101920.0,101910.0,0.42470194]
[1762994155387,0.05781698,101930.0,101910.0,0.42470194]
[1762994155621,0.05781698,101930.0,101910.0,0.38202194]
[1762994155622,0.19623233,101920.0,101910.0,0.38202194]
[1762994155853,0.25449963,101930.0,101910.0,0.38202194]
[1762994156099,0.21196233,101920.0,101910.0,0.14349035]
[1762994156346,0.02046927,101930.0,101920.0,0.22851233]
[1762994156580,0.00046927,101930.0,101920.0,0.33553968]
[1762994156810,0.00046927,101930.0,101920.0,0.79383843]
[1762994157040,0.00046927,101930.0,101920.0,0.33553968]
[1762994157517,0.00046927,101930.0,101920.0,0.9752161]
[1762994157737,0.00046927,101930.0,101920.0,0.9772161]
[1762994157957,0.00046927,101930.0,101920.0,0.9782161]
[1762994159065,0.00046927,101930.0,101920.0,0.9772161]
[1762994159294,0.00046927,101930.0,101920.0,0.9752161]
[1762994159507,0.19668235,101930.0,101920.0,0.32668502]
[1762994159736,0.19668235,101930.0,101920.0,0.9872161]
[1762994159737,0.00046927,101930.0,101920.0,0.9872161]
[1762994159963,0.19668235,101930.0,101920.0,0.48549861]
[1762994160176,0.19668235,101930.0,101920.0,0.39021968]
[1762994160387,0.26903235,101930.0,101920.0,0.09764735]
[1762994160875,0.26903235,101930.0,101920.0,0.012]
[1762994161287,0.23789235,101930.0,101920.0,0.006]
[1762994161494,0.21668235,101930.0,101920.0,0.02729]
[1762994161703,0.02046927,101930.0,101920.0,0.34894126]
[1762994161907,0.21693062,101930.0,101920.0,0.05743]
[1762994162112,0.21693062,101930.0,101920.0,0.05143]
[1762994162314,0.21693062,101930.0,101920.0,0.24866233]
[1762994162523,0.21693062,101930.0,101920.0,0.25066233]
[1762994162739,0.02071754,101930.0,101920.0,0.30089069]
[1762994162979,0.00071754,101930.0,101920.0,0.30089069]
[1762994163197,0.00071754,101930.0,101920.0,0.39616962]
[1762994163420,0.00071754,101930.0,101920.0,1.09372259]
[1762994163910,0.01250069,101960.0,101950.0,0.23959333]
[1762994164133,0.01250069,101960.0,101950.0,1.00037453]
[1762994164134,0.01264146,101960.0,101950.0,1.00037453]
[1762994164349,0.01264146,101960.0,101950.0,1.35352453]
[1762994164579,0.0002,101980.0,101970.0,0.23955485]
[1762994164799,0.0002,101980.0,101970.0,0.97128908]
[1762994165020,0.0002,101980.0,101970.0,1.09985943]
[1762994165906,0.0002,101980.0,101970.0,0.4457252]
[1762994166124,0.0002,101980.0,101970.0,0.4517252]
[1762994166568,0.0002,101980.0,101970.0,0.4577252]
[1762994166801,0.0002,101980.0,101970.0,1.11185943]
[1762994167047,0.0002,101980.0,101970.0,1.14130729]
[1762994168409,0.0002,101980.0,101970.0,1.12930729]
[1762994168632,0.0002,101980.0,101970.0,1.13930729]
[1762994169102,0.0002,101980.0,101970.0,1.15030729]
[1762994169317,0.0002,101980.0,101970.0,1.47330729]
[1762994169763,0.0002,102040.0,102020.0,0.23945873]
[1762994169980,0.00034072,102040.0,102030.0,0.23073077]
[1762994170195,0.00034072,102040.0,102030.0,0.26088077]
[1762994170401,0.00034072,102040.0,102030.0,0.23073077]
[1762994170616,0.00034072,102040.0,102030.0,0.26088077]
[1762994170842,0.01504,102050.0,102040.0,0.19600156]
[1762994171043,0.24194147,102050.0,102030.0,0.23072703]
[1762994171248,0.0459588,102050.0,102030.0,0.26087703]
[1762994171476,0.0004688,102050.0,102040.0,0.24642156]
[1762994173415,0.0004688,102050.0,102040.0,0.24742156]
[1762994173626,0.0004688,102050.0,102040.0,0.30273731]
[1762994174457,0.0004688,102050.0,102040.0,0.30173731]
[1762994174866,0.0004688,102050.0,102040.0,0.30273731]
[1762994175074,0.21812116,102050.0,102040.0,0.001]
[1762994175292,0.26857116,102050.0,102040.0,0.001]
[1762994177393,0.21601054,102040.0,102020.0,0.22978785]
[1762994177591,0.21601054,102040.0,102020.0,0.30281785]
[1762994177795,0.21601054,102040.0,102030.0,0.23073077]
[1762994177995,0.21645116,102050.0,102040.0,0.19600156]
[1762994178203,0.0004688,102050.0,102040.0,0.24642156]
[1762994178406,0.19645116,102050.0,102040.0,0.24642156]
[1762994178647,0.0004688,102050.0,102040.0,0.24642156]
[1762994179359,0.0004688,102050.0,102040.0,0.24742156]
[1762994179535,0.0004688,102050.0,102040.0,0.30379792]
[1762994179950,0.0004688,102050.0,102040.0,1.00135089]
[1762994180152,0.0004688,102050.0,102040.0,0.34721666]
[1762994180366,0.00344446,102050.0,102040.0,0.34621666]
[1762994180739,0.00344446,102050.0,102040.0,0.34721666]
[1762994181146,0.00344446,102050.0,102040.0,0.34621666]
[1762994181560,0.00344446,102050.0,102040.0,0.35221666]
[1762994182430,0.00344446,102050.0,102040.0,1.01635088]
[1762994182584,1e-08,102050.0,102040.0,1.33935088]
[1762994182798,1e-08,102050.0,102040.0,1.36877385]
[1762994183570,1e-08,102050.0,102040.0,1.36277385]
[1762994183704,1e-08,102050.0,102040.0,1.37477385]
[1762994186563,1e-08,102050.0,102040.0,1.38477384]
[1762994186932,1e-08,102050.0,102040.0,1.38492084]
[1762994187389,1e-08,102050.0,102040.0,1.4024525]
[1762994187921,1e-08,102050.0,102040.0,1.47424964]
[1762994188254,1e-08,102050.0,102040.0,1.4024525]
[1762994189031,1e-08,102050.0,102040.0,2.16028673]
[1762994189235,0.20582916,102130.0,102090.0,0.20567173]
[1762994189373,0.20582916,102130.0,102100.0,0.20564934]
[1762994189374,0.24050425,102130.0,102100.0,0.20564934]
[1762994189572,0.24749835,102120.0,102100.0,0.19588467]
[1762994189785,0.24749835,102120.0,102100.0,0.19588638]
[1762994189786,0.05617,102110.0,102100.0,0.19588638]
[1762994189959,0.28368911,102110.0,102090.0,0.2716489]
[1762994190176,0.24800638,102100.0,102080.0,0.25404332]
[1762994190375,0.03551,102090.0,102080.0,0.01477]
[1762994190651,0.23141557,102090.0,102080.0,0.01477]
[1762994190854,0.27306557,102090.0,102070.0,0.34903171]
[1762994191111,0.323,102100.0,102090.0,0.19590557]
[1762994191313,0.323,102100.0,102090.0,0.32731216]
[1762994191458,0.0257,102110.0,102100.0,0.19588638]
[1762994191658,0.32314064,102110.0,102100.0,0.21635638]
[1762994191878,0.00014064,102110.0,102100.0,0.24699638]
[1762994192269,0.41068472,102130.0,102110.0,0.21141677]
[1762994192469,0.72203472,102130.0,102110.0,0.2887264]
[1762994192710,0.39903472,102130.0,102110.0,0.2887264]
[1762994193138,0.62675579,102130.0,102110.0,0.2887264]
[1762994193434,0.62675579,102130.0,102110.0,0.2887254]
[1762994193645,0.59734004,102130.0,102110.0,0.04174963]
[1762994193851,0.1958672,102110.0,102090.0,0.34727743]
[1762994194055,0.2023072,102110.0,102090.0,0.24145518]
[1762994194267,0.22564042,102120.0,102100.0,0.34227531]
[1762994194478,0.1958672,102110.0,102100.0,0.34227531]
[1762994194685,0.1958672,102110.0,102100.0,0.14638893]
[1762994194888,0.1958672,102110.0,102100.0,0.10904249]
[1762994194889,0.20379327,102110.0,102100.0,0.10904249]
[1762994195098,0.19588638,102100.0,102090.0,0.01491064]
[1762994195296,0.19588638,102100.0,102090.0,0.21159621]
[1762994195435,0.2023072,102110.0,102090.0,0.23206621]
[1762994195638,0.19588638,102100.0,102090.0,0.11057936]
[1762994195844,0.19588638,102100.0,102090.0,0.05946936]
[1762994196068,0.26800638,102100.0,102090.0,0.00514064]
[1762994196473,0.26800638,102100.0,102090.0,0.00014064]
[1762994196673,0.59100638,102100.0,102090.0,0.00014064]
[1762994196877,1.08973192,102100.0,102090.0,0.00214064]
[1762994197083,1.10973192,102100.0,102090.0,0.00214064]
[1762994197295,1.20635075,102100.0,102090.0,0.00214064]
[1762994197521,1.22635075,102100.0,102090.0,0.00014064]
[1762994197819,1.22636519,102100.0,102090.0,0.00014064]
[1762994198213,1.12794484,102100.0,102090.0,0.00014064]
[1762994198822,1.12794484,102100.0,102090.0,0.00114064]
[1762994199233,0.6092193,102100.0,102090.0,0.00114064]
[1762994199432,1.22322377,102100.0,102090.0,0.00014064]
[1762994199655,1.22422377,102100.0,102090.0,0.00014064]
[1762994199856,1.32264412,102100.0,102090.0,0.00014064]
[1762994199989,1.22422377,102100.0,102090.0,0.00014064]
[1762994200394,1.22524737,102100.0,102090.0,0.00014064]
[1762994200701,1.24648588,102100.0,102090.0,0.00014064]
[1762994200906,1.22648588,102100.0,102090.0,0.00014064]
[1762994201112,1.34490623,102100.0,102090.0,0.00014064]
[1762994203257,0.7147078,102060.0,102040.0,0.25237606]
[1762994203430,0.00812,102050.0,102040.0,0.25237606]
[1762994203632,0.22457236,102050.0,102040.0,0.05637636]
[1762994203879,0.22457236,102050.0,102030.0,0.37919506]
[1762994204083,0.00812,102050.0,102040.0,0.24711156]
[1762994204446,0.20410236,102050.0,102040.0,0.19600156]
[1762994204827,0.20410236,102050.0,102030.0,0.8979206]
[1762994204828,0.22457236,102050.0,102030.0,0.37919506]
[1762994205181,0.00812,102050.0,102040.0,0.24711156]
[1762994205383,0.30051041,102060.0,102050.0,0.19598236]
[1762994205384,0.06308,102060.0,102050.0,0.19598236]
[1762994205597,0.08134614,102060.0,102050.0,0.23200236]
[1762994205761,0.2773088,102060.0,102050.0,0.23200236]
[1762994205958,0.2977788,102060.0,102050.0,0.21153236]
[1762994206809,0.2977788,102060.0,102050.0,0.001]
[1762994207013,0.3294288,102060.0,102050.0,0.001]
[1762994208043,1.17115434,102060.0,102050.0,0.001]
[1762994208649,1.19246107,102060.0,102050.0,0.001]
[1762994209516,0.19601694,102040.0,102020.0,0.22129939]
[1762994209693,0.19602077,102030.0,102020.0,0.22176819]
[1762994209889,0.21601694,102040.0,102030.0,0.19602077]
[1762994210075,0.21601694,102040.0,102030.0,0.24086367]
[1762994210295,0.23648694,102040.0,102030.0,0.19602077]
[1762994210517,0.23648694,102040.0,102020.0,0.25240819]
[1762994210518,0.31117694,102040.0,102020.0,0.22176819]
[1762994210659,0.24293077,102030.0,102020.0,0.20621819]
[1762994210863,0.22293077,102030.0,102020.0,0.20621819]
[1762994211063,0.27458077,102030.0,102020.0,0.1964162]
[1762994211293,0.27458077,102030.0,102020.0,0.251832]
[1762994211716,0.27458077,102030.0,102020.0,0.0054688]
[1762994211717,0.65893415,102030.0,102020.0,0.0054688]
[1762994211919,0.65893415,102030.0,102020.0,0.0004688]
[1762994212125,0.65893415,102030.0,102020.0,0.0064688]
[1762994212611,0.65893415,102030.0,102020.0,0.0004688]
[1762994213056,1.27608004,102030.0,102020.0,0.0014688]
[1762994213321,1.17765969,102030.0,102020.0,0.0014688]
[1762994213492,0.65893415,102030.0,102020.0,0.0014688]
[1762994213760,1.27293862,102030.0,102020.0,0.0014688]
[1762994213892,1.35135897,102030.0,102020.0,0.0014688]
[1762994214094,1.37135897,102030.0,102020.0,0.0004688]
[1762994214888,1.39237576,102030.0,102020.0,0.0004688]
[1762994216353,1.37237576,102030.0,102020.0,0.0004688]
[1762994216577,1.39237576,102030.0,102020.0,0.0004688]
[1762994217105,1.27293862,102030.0,102020.0,0.0004688]
[1762994217258,1.25293862,102030.0,102020.0,0.0004688]
[1762994217491,1.27391562,102030.0,102020.0,0.0004688]
[1762994217696,1.29391562,102030.0,102020.0,0.0004688]
[1762994217875,1.34733435,102030.0,102020.0,0.0004688]
[1762994218090,0.19609765,101990.0,101980.0,0.0004]
[1762994218272,0.24886765,101990.0,101980.0,0.1966576]
[1762994218473,0.28051765,101990.0,101980.0,0.1966576]
[1762994218700,0.0323,101990.0,101980.0,0.2171276]
[1762994219161,0.02,101990.0,101980.0,0.2477676]
[1762994219367,0.02,101990.0,101980.0,0.34618795]
[1762994219551,0.59445843,102000.0,101990.0,0.19609765]
[1762994219756,0.62653843,102000.0,101980.0,0.34618795]
[1762994220059,0.20839765,101990.0,101980.0,0.31554795]
[1762994220261,0.28201765,101990.0,101980.0,0.00054072]
[1762994220395,0.58501765,101990.0,101980.0,0.00054072]
[1762994220589,0.58501765,101990.0,101980.0,0.00654072]
[1762994220817,1.12374319,101990.0,101980.0,0.00654072]
[1762994221026,1.12374319,101990.0,101980.0,0.00054072]
[1762994221316,1.14194371,101990.0,101980.0,0.00054072]
[1762994221494,1.23722264,101990.0,101980.0,0.00254072]
[1762994222038,1.23722264,101990.0,101940.0,0.85198647]
[1762994222039,0.1961854,101950.0,101940.0,0.19619383]
[1762994222247,0.2490054,101950.0,101940.0,0.00014077]
[1762994222446,0.2810854,101950.0,101940.0,0.1963346]
[1762994222869,0.2810854,101950.0,101940.0,0.00014077]
[1762994223272,0.28107459,101950.0,101940.0,0.1963346]
[1762994223557,0.0849,101950.0,101940.0,0.1963346]
[1762994223773,0.02,101950.0,101940.0,0.2177646]
[1762994223968,0.5735566,101960.0,101950.0,0.19617459]
[1762994224206,0.28002459,101950.0,101940.0,0.00014077]
[1762994224620,0.58302459,101950.0,101940.0,0.00214077]
[1762994224829,0.60302459,101950.0,101940.0,0.00214077]
[1762994225257,0.70144494,101950.0,101940.0,0.00214077]
[1762994225464,0.40685,101950.0,101940.0,0.1983346]
[1762994225673,0.33368,101950.0,101940.0,0.2197646]
[1762994225876,0.35368,101950.0,101940.0,0.2197646]
[1762994226490,0.2505566,101960.0,101950.0,0.19617459]
[1762994226491,0.01128,101960.0,101950.0,0.19617459]
[1762994226712,0.01128,101960.0,101950.0,0.23339459]
[1762994226713,0.03128,101960.0,101950.0,0.23339459]
[1762994226912,0.03128,101970.0,101960.0,0.19615535]
[1762994227114,0.01128,101970.0,101960.0,0.19615535]
[1762994227288,0.55041611,101970.0,101950.0,0.34159494]
[1762994227722,0.58299611,101970.0,101950.0,0.34259494]
[1762994227945,0.58299611,101970.0,101960.0,0.19615535]
[1762994228120,0.58299611,101970.0,101950.0,0.34259494]
[1762994228280,0.55041611,101970.0,101960.0,0.19615535]
[1762994228912,0.323,101970.0,101960.0,0.27136038]
[1762994229114,0.02,101980.0,101970.0,0.19613611]
[1762994229319,0.36606146,101990.0,101980.0,0.19611688]
[1762994229519,0.36606146,101990.0,101970.0,0.25916611]
[1762994230088,0.36606146,101990.0,101970.0,0.22795611]
[1762994230294,0.21670688,101980.0,101960.0,0.80967368]
[1762994230569,0.07941432,101980.0,101960.0,0.20596311]
[1762994230771,0.19613611,101970.0,101960.0,0.19615535]
[1762994230971,0.2755312,101980.0,101970.0,0.19613611]
[1762994231150,0.25927688,101980.0,101970.0,0.19613611]
[1762994231315,0.02,101980.0,101970.0,0.27784926]
[1762994231691,0.60436253,101990.0,101980.0,0.19611688]
[1762994231885,0.56120253,101990.0,101980.0,0.19611688]
[1762994232307,0.58016253,101990.0,101980.0,0.19611688]
[1762994232516,0.37426,101990.0,101980.0,0.19611688]
[1762994232646,0.55139765,101990.0,101980.0,0.21754688]
[1762994232853,0.57035765,101990.0,101980.0,0.19611688]
[1762994233486,0.35426,101990.0,101980.0,0.19611688]
[1762994233804,0.57035765,101990.0,101970.0,0.28762926]
[1762994234351,0.57035765,101990.0,101980.0,0.19611688]
[1762994234352,0.37426,101990.0,101980.0,0.19611688]
[1762994234557,0.57035765,101990.0,101980.0,0.19611688]
[1762994234690,0.57035765,101990.0,101980.0,0.21754688]
[1762994234691,0.3553,101990.0,101980.0,0.21754688]
[1762994234892,0.0323,102000.0,101990.0,0.19609765]
[1762994235098,0.35544036,102000.0,101990.0,0.26452765]
[1762994235322,0.00014036,102000.0,101990.0,0.26452765]
[1762994235521,0.00014036,102000.0,101990.0,0.30319398]
[1762994236166,0.00014036,102000.0,101980.0,0.24663449]
[1762994236167,0.23517879,102000.0,101980.0,0.24663449]
[1762994236581,0.04724,101990.0,101980.0,0.24663449]
[1762994236783,0.02828,101990.0,101980.0,0.24663449]
[1762994237550,0.24333765,101990.0,101970.0,0.29743606]
[1762994237736,0.23507688,101980.0,101970.0,0.19613611]
[1762994238451,0.02,101980.0,101970.0,0.26456611]
[1762994238659,0.35128,101990.0,101980.0,0.19611688]
[1762994238859,0.19611688,101980.0,101970.0,0.26456611]
[1762994239069,0.23507688,101980.0,101970.0,0.19613611]
[1762994239676,0.23507688,101980.0,101960.0,0.30124204]
[1762994239849,0.23507688,101980.0,101970.0,0.19813611]
[1762994240472,0.23507688,101980.0,101970.0,0.19613611]
[1762994241067,0.03896,101980.0,101970.0,0.21192611]
[1762994241271,0.02,101980.0,101970.0,0.21192611]
[1762994241452,0.25336296,101980.0,101970.0,0.01579]
[1762994241852,0.23336296,101980.0,101970.0,0.01579]
[1762994242073,0.25336296,101980.0,101970.0,0.01579]
[1762994242277,0.25336296,101980.0,101970.0,0.21392611]
[1762994242476,0.05724608,101980.0,101970.0,0.21392611]
[1762994243040,0.05724608,101980.0,101970.0,0.27840596]
[1762994243237,0.03828608,101980.0,101970.0,0.27840596]
[1762994243445,0.03828608,101980.0,101970.0,0.29983596]
[1762994244898,0.23440296,101980.0,101970.0,0.23535611]
[1762994245125,0.23336296,101980.0,101970.0,0.21392611]
[1762994245330,0.23336296,101980.0,101970.0,0.002]
[1762994245331,0.25336296,101980.0,101970.0,0.002]
[1762994245736,0.27232296,101980.0,101970.0,0.002]
[1762994246737,0.27232296,101980.0,101970.0,0.19813611]
[1762994246911,0.27232296,101980.0,101970.0,0.002]
[1762994247710,0.25336296,101980.0,101970.0,0.19813611]
[1762994248199,0.23336296,101980.0,101970.0,0.19813611]
[1762994248411,0.03724608,101980.0,101970.0,0.19813611]
[1762994248623,0.05724608,101980.0,101970.0,0.19813611]
[1762994249048,0.03828608,101980.0,101970.0,0.32946696]
[1762994249694,0.23440296,101980.0,101970.0,0.29825696]
[1762994249892,0.25429296,101980.0,101970.0,0.27682696]
[1762994250293,0.27418296,101980.0,101970.0,0.002]
[1762994250526,0.23429296,101980.0,101970.0,0.19813611]
[1762994250855,0.25418296,101980.0,101970.0,0.19813611]
[1762994251059,0.25429296,101980.0,101970.0,0.19813611]
[1762994252014,0.05817608,101980.0,101970.0,0.19813611]
[1762994252166,0.03828608,101980.0,101970.0,0.29367596]
[1762994255430,0.01828608,101980.0,101970.0,0.98013796]
[1762994255640,0.04322036,102000.0,101990.0,0.19609765]
[1762994255800,0.36148807,102000.0,101990.0,0.23185765]
[1762994255998,0.01848807,102000.0,101990.0,0.26477765]
[1762994256541,0.01848807,102000.0,101990.0,0.32039325]
[1762994257785,0.03837807,102000.0,101990.0,0.21177765]
[1762994257991,0.01848807,102000.0,101990.0,0.23185765]
[1762994258200,0.01848807,102000.0,101990.0,0.26477765]
[1762994258424,0.01848807,102000.0,101990.0,0.26677765]
[1762994258764,0.01848807,102000.0,101990.0,0.26477765]
[1762994258969,0.01848807,102000.0,101990.0,0.33867489]
[1762994259590,0.01848807,102000.0,101990.0,0.30575489]
[1762994259813,0.03848807,102000.0,101990.0,0.30575489]
[1762994259981,0.03848807,102000.0,101990.0,0.33867489]
[1762994260182,0.03848807,102000.0,101990.0,0.33967489]
[1762994260457,0.02014036,102000.0,101990.0,0.33967489]
[1762994261895,0.00014036,102000.0,101990.0,0.30675489]
[1762994262105,0.02014036,102000.0,101990.0,0.33967489]
[1762994262730,0.02014036,102000.0,101990.0,0.38309363]
[1762994262940,0.297675,102030.0,102010.0,0.1960592]
[1762994262941,0.02,102030.0,102010.0,0.1960592]
[1762994263148,0.03834304,102030.0,102020.0,0.23178252]
[1762994263350,0.03834304,102030.0,102020.0,0.26470252]
[1762994263351,0.02,102030.0,102020.0,0.26470252]
[1762994264288,0.022,102030.0,102020.0,0.26470252]
[1762994264420,0.02,102030.0,102020.0,0.32391085]
[1762994264832,0.02,102040.0,102030.0,0.19600504]
[1762994265032,0.36178722,102040.0,102030.0,0.21168504]
[1762994265466,0.55936036,102040.0,102030.0,0.21168504]
[1762994266227,0.23589156,102040.0,102020.0,0.31363284]
[1762994266349,0.06308,102050.0,102040.0,0.19600156]
[1762994266556,0.79583355,102070.0,102050.0,0.19598236]
[1762994266815,0.20598236,102050.0,102030.0,0.2554218]
[1762994267004,0.85952436,102050.0,102030.0,0.21184135]
[1762994267205,0.84954356,102040.0,102030.0,0.00014058]
[1762994267413,0.91266356,102040.0,102030.0,0.00014058]
[1762994267615,1.02937954,102040.0,102030.0,0.00014058]
[1762994268046,1.44765847,102040.0,102030.0,0.00014058]
[1762994268896,3.45765846,102040.0,102030.0,0.00014058]
[1762994269091,3.47765846,102040.0,102030.0,0.00014058]
[1762994269823,3.50727333,102040.0,102030.0,0.00014058]
[1762994269946,3.50927333,102040.0,102030.0,0.00014058]
[1762994270927,1.48927333,102040.0,102030.0,0.00014058]
[1762994271134,1.45965846,102040.0,102030.0,0.00014058]
[1762994272450,1.48927333,102040.0,102030.0,0.00014058]
[1762994273360,1.45965846,102040.0,102030.0,0.00014058]
[1762994273587,1.48910728,102040.0,102030.0,0.00014058]
[1762994275243,1.46910728,102040.0,102030.0,0.00014058]
[1762994275443,1.48910728,102040.0,102030.0,0.00014058]
[1762994275649,1.38068694,102040.0,102030.0,0.00014058]
[1762994276050,1.38064694,102040.0,102030.0,0.00014058]
[1762994276470,0.36102494,102040.0,102030.0,0.00014058]
[1762994276673,0.35640049,102040.0,102030.0,0.00014058]
[1762994277755,0.45482084,102040.0,102030.0,0.00014058]
[1762994278583,0.45282084,102040.0,102030.0,0.00014058]
[1762994278782,0.45382084,102040.0,102030.0,0.00014058]
[1762994279420,0.47212801,102040.0,102030.0,0.00014058]
[1762994279835,1.12567001,102040.0,102030.0,0.00014058]
[1762994280042,1.44867001,102040.0,102030.0,0.00014058]
[1762994280927,1.35024966,102040.0,102030.0,0.00014058]
[1762994281386,0.69670766,102040.0,102030.0,0.00014058]
[1762994281607,1.35024966,102040.0,102030.0,0.00014058]
[1762994282482,0.69670766,102040.0,102030.0,0.00014058]
[1762994282684,1.35024966,102040.0,102030.0,0.00014058]
[1762994282892,1.44867001,102040.0,102030.0,0.00014058]
[1762994284210,1.35024966,102040.0,102030.0,0.00014058]
[1762994284417,1.35027719,102040.0,102030.0,0.00014058]
[1762994284621,1.33027719,102040.0,102030.0,0.00014058]
[1762994284848,1.35027719,102040.0,102030.0,0.00014058]
[1762994285647,1.33027719,102040.0,102030.0,0.00014058]
[1762994285871,1.35027719,102040.0,102030.0,0.00014058]
[1762994286491,1.44869754,102040.0,102030.0,0.00014058]
[1762994286892,1.42869754,102040.0,102030.0,0.00014058]
[1762994287094,1.35027719,102040.0,102030.0,0.00014058]
[1762994287512,1.30715719,102040.0,102030.0,0.00014058]
[1762994287714,1.35023719,102040.0,102030.0,0.00014058]
[1762994288342,0.69669519,102040.0,102030.0,0.00014058]
[1762994288550,1.35023719,102040.0,102030.0,0.00014058]
[1762994289421,0.69669519,102040.0,102030.0,0.00014058]
[1762994289663,1.35023719,102040.0,102030.0,0.00014058]
[1762994290759,1.44865754,102040.0,102030.0,0.00014058]
[1762994294967,1.35023719,102040.0,102030.0,0.00014058]
[1762994296373,1.37639405,102040.0,102030.0,0.00014058]
[1762994297979,0.69669519,102040.0,102030.0,0.01673058]
[1762994298412,0.37369519,102040.0,102030.0,0.21275135]
[1762994298618,0.37369519,102040.0,102030.0,0.23591135]
[1762994298944,0.60141626,102040.0,102030.0,0.03989058]
[1762994299146,0.60141626,102040.0,102030.0,0.01673058]
[1762994300182,0.60141626,102040.0,102030.0,0.00014058]
[1762994300183,1.42865754,102040.0,102030.0,0.00014058]
[1762994300384,1.44865754,102040.0,102030.0,0.00014058]
[1762994300792,0.69669519,102040.0,102030.0,0.00014058]
[1762994301201,0.47151101,102040.0,102030.0,0.00014058]
[1762994301379,0.53900156,102040.0,102030.0,0.21275135]
[1762994301610,0.58204156,102040.0,102030.0,0.01673058]
[1762994302197,0.58204156,102040.0,102030.0,0.00014058]
[1762994302646,1.42928284,102040.0,102030.0,0.00014058]
[1762994302849,1.33086249,102040.0,102030.0,0.00014058]
[1762994307042,1.31086249,102040.0,102030.0,0.00014058]
[1762994307464,1.33086249,102040.0,102030.0,0.00014058]
[1762994309697,0.67732049,102040.0,102030.0,0.00014058]
[1762994309912,0.65732049,102040.0,102030.0,0.00014058]
[1762994310100,0.67732049,102040.0,102030.0,0.00014058]
[1762994310339,0.67732049,102040.0,102030.0,0.04051058]
[1762994310560,0.65732049,102040.0,102030.0,0.07457058]
[1762994310782,0.67732049,102040.0,102030.0,0.27059135]
[1762994310995,0.56204156,102040.0,102030.0,0.27059135]
[1762994311208,0.58204156,102040.0,102030.0,0.27059135]
[1762994311643,1.10133318,102040.0,102030.0,0.27059135]
[1762994312569,0.58204156,102040.0,102030.0,0.27059135]
[1762994312784,1.10133318,102040.0,102030.0,0.04051058]
[1762994312988,1.10133318,102040.0,102030.0,0.27059135]
[1762994313197,0.38604,102040.0,102030.0,0.27059135]
[1762994313411,0.58204156,102040.0,102030.0,0.27059135]
[1762994313647,0.58204156,102040.0,102030.0,0.00014058]
[1762994313865,0.58204156,102040.0,102030.0,0.01703058]
[1762994314089,1.10133318,102040.0,102030.0,0.23653135]
[1762994314976,1.10133318,102040.0,102030.0,0.27059135]
[1762994315211,1.05829318,102040.0,102030.0,0.27059135]
[1762994315421,1.05829318,102040.0,102030.0,0.07457058]
[1762994315930,0.02,102040.0,102030.0,0.27059135]
[1762994316367,0.21600156,102040.0,102030.0,0.04051058]
[1762994316577,0.73529318,102040.0,102030.0,0.04051058]
[1762994316778,0.73529318,102040.0,102030.0,0.01703058]
[1762994316985,1.13001478,102040.0,102030.0,0.01703058]
[1762994317151,1.55143513,102040.0,102030.0,0.01703058]
[1762994317352,1.45301478,102040.0,102030.0,0.00014058]
[1762994322203,1.47138522,102040.0,102030.0,0.00014058]
[1762994323247,1.47238522,102040.0,102030.0,0.00014058]
[1762994324881,1.4723883,102040.0,102030.0,0.00014058]
[1762994328031,1.4723883,102040.0,102030.0,0.04051058]
[1762994328234,1.4723883,102040.0,102030.0,0.07457058]
[1762994328458,1.4723883,102040.0,102030.0,0.04051058]
[1762994328660,1.4723883,102040.0,102030.0,0.00014058]
[1762994328871,1.59696551,102040.0,102030.0,0.00014058]
[1762994330162,1.57080865,102040.0,102030.0,0.00014058]
[1762994330690,1.4523883,102040.0,102030.0,0.00014058]
[1762994330869,1.4723883,102040.0,102030.0,0.00014058]
[1762994331952,1.4523883,102040.0,102030.0,0.00014058]
[1762994332094,1.4723883,102040.0,102030.0,0.00014058]
[1762994341312,1.47239179,102040.0,102030.0,0.01716058]
[1762994341701,1.47239179,102040.0,102030.0,0.00014058]
[1762994345432,1.57081214,102040.0,102030.0,0.00014058]
[1762994345638,1.47239179,102040.0,102030.0,0.03947058]
[1762994345840,0.001,102040.0,102030.0,0.26778135]
[1762994345981,0.021,102040.0,102030.0,0.07176058]
[1762994346206,0.021,102040.0,102030.0,0.26778135]
[1762994346409,0.02,102040.0,102030.0,0.3615316]
[1762994346603,0.02,102040.0,102030.0,0.3625316]
[1762994347949,0.67300817,102040.0,102030.0,0.07276058]
[1762994348162,0.67300817,102040.0,102030.0,0.26878135]
[1762994349066,0.67300817,102040.0,102030.0,0.07276058]
[1762994349458,1.11001478,102040.0,102030.0,0.04047058]
[1762994349656,1.47138302,102040.0,102030.0,0.00114058]
[1762994350082,1.56980337,102040.0,102030.0,0.00114058]
[1762994350322,1.56980337,102040.0,102030.0,0.00014058]
[1762994350724,1.47138302,102040.0,102030.0,0.00014058]
[1762994350926,1.45138302,102040.0,102030.0,0.00014058]
[1762994351146,1.47138302,102040.0,102030.0,0.00014058]
[1762994351553,1.92838963,102040.0,102030.0,0.00014058]
[1762994351706,1.95454649,102040.0,102030.0,0.00014058]
[1762994351908,5.23083414,102040.0,102030.0,0.00014058]
[1762994352109,4.07468687,102040.0,102030.0,0.00014058]
[1762994352342,2.06296683,102040.0,102030.0,0.00014058]
[1762994352852,2.06296731,102040.0,102030.0,0.00014058]
[1762994353234,2.05296732,102040.0,102030.0,0.00014058]
[1762994353589,2.05396732,102040.0,102030.0,0.00014058]
[1762994353795,2.06396731,102040.0,102030.0,0.00014058]
[1762994354135,2.05396732,102040.0,102030.0,0.00014058]
[1762994354953,1.49854036,102040.0,102030.0,0.00014058]